bitfinex/quotes_ETHUSD_20250413
["timestamp","ask_amount","ask_price","bid_price","bid_amount"]
[1744518163198,13.19801,1616.2,1615.8,13.24171]
[1744518163787,7.01043,1616.2,1615.8,13.24171]
[1744518164323,13.19801,1616.2,1615.8,12.45971]
[1744518166808,7.01043,1616.2,1615.9,6.18843]
[1744518168831,8.330175,1616.2,1615.9,6.18843]
[1744518170023,0.12912721,1616.1,1615.8,12.45971]
[1744518170538,0.12912721,1616.1,1615.8,18.64842]
[1744518170836,0.12912721,1616.1,1615.8,12.45971]
[1744518171012,6.31690721,1616.1,1615.8,12.45971]
[1744518172818,6.31690721,1616.1,1615.8,14.324606]
[1744518174448,6.31690721,1616.1,1615.8,12.45971]
[1744518175748,6.31690721,1616.1,1615.8,6.271]
[1744518176518,6.31690721,1616.1,1615.8,12.45982]
[1744518180646,12.50490721,1616.1,1615.8,6.271]
[1744518181884,0.12912721,1616.1,1615.6,2.102859]
[1744518182153,6.1891,1615.8,1615.5,12.39302]
[1744518182721,0.12450823,1615.7,1615.5,12.39302]
[1744518182944,0.12450823,1615.7,1615.5,14.33007]
[1744518183255,6.1891,1615.8,1615.5,14.33007]
[1744518183876,6.96859,1615.9,1615.5,20.51993]
[1744518184078,0.78,1616.1,1615.6,0.7872]
[1744518184220,9.9678,1616.1,1615.8,6.18875]
[1744518184422,0.78,1616.1,1615.8,6.1887]
[1744518184654,0.78,1616.1,1615.8,12.99629]
[1744518184955,0.12642959,1616.0,1615.8,12.99629]
[1744518185270,0.12642959,1616.0,1615.9,7.0013]
[1744518185748,0.12642959,1616.0,1615.9,19.39365]
[1744518185948,3.0,1616.2,1615.9,13.20515]
[1744518186155,3.0,1616.2,1615.9,19.39346]
[1744518186356,0.12700038,1616.1,1615.9,13.20511]
[1744518186516,0.12700038,1616.1,1615.9,15.206395]
[1744518187050,0.12700038,1616.1,1615.9,15.206385]
[1744518187255,4.0376554,1616.4,1616.1,6.18765]
[1744518187444,4.0376554,1616.4,1616.1,12.37518]
[1744518187643,4.0376554,1616.4,1616.2,6.18721]
[1744518187859,4.0376554,1616.4,1616.3,6.18697]
[1744518188203,4.0376554,1616.4,1616.3,12.38997]
[1744518188866,4.0376554,1616.4,1616.3,6.203]
[1744518189566,4.0376554,1616.4,1616.3,12.38997]
[1744518189864,11.0544154,1616.7,1616.3,18.57694]
[1744518190165,11.0544154,1616.7,1616.3,20.5777861]
[1744518190364,4.8689554,1616.7,1616.4,6.18635]
[1744518191070,4.0376554,1616.7,1616.5,0.8167]
[1744518191277,4.0376554,1616.7,1616.6,6.18582]
[1744518191637,11.0040554,1616.7,1616.3,7.00353]
[1744518191839,6.18622,1616.5,1616.3,6.203]
[1744518192052,6.18621,1616.5,1616.3,6.203]
[1744518192856,6.18625,1616.5,1616.3,6.203]
[1744518193070,0.7808,1616.4,1616.3,6.203]
[1744518193790,9.96667,1616.6,1616.3,6.203]
[1744518194191,6.18475,1616.9,1616.4,6.18644]
[1744518194192,6.9655,1616.9,1616.4,6.18644]
[1744518194477,0.7808,1616.9,1616.6,6.18565]
[1744518196285,0.7808,1616.9,1616.6,12.37129]
[1744518196481,0.7808,1616.9,1616.6,6.18564]
[1744518196983,0.7808,1616.9,1616.6,12.37128]
[1744518197152,0.7808,1616.9,1616.6,13.608408]
[1744518198282,0.7808,1616.9,1616.6,7.422768]
[1744518199386,6.96556,1616.9,1616.5,6.1862]
[1744518199672,12.37072,1616.8,1616.4,7.00327]
[1744518199983,6.1853,1616.8,1616.4,7.00327]
[1744518200481,6.1853,1616.8,1616.4,13.18966]
[1744518200710,6.1853,1616.8,1616.4,13.18949]
[1744518200711,6.18528,1616.8,1616.4,13.18949]
[1744518200986,6.18528,1616.8,1616.5,1.318949]
[1744518201346,6.18528,1616.8,1616.5,7.505049]
[1744518202757,12.37058,1616.8,1616.4,7.00309]
[1744518203208,6.18528,1616.8,1616.4,7.00309]
[1744518203545,6.18528,1616.8,1616.4,13.18947]
[1744518203945,6.18528,1616.8,1616.5,6.18604]
[1744518205088,6.96552,1616.9,1616.5,6.18604]
[1744518205273,13.15046,1616.9,1616.5,7.504952]
[1744518205987,6.96552,1616.9,1616.5,7.504952]
[1744518206563,13.15046,1616.9,1616.5,7.504952]
[1744518207799,6.96552,1616.9,1616.5,7.504912]
[1744518208298,3.0,1616.9,1616.6,6.1856]
[1744518208467,3.0,1616.9,1616.6,7.5546512]
[1744518209011,3.0,1616.9,1616.7,0.8075]
[1744518209310,8.38302741,1617.2,1616.7,13.19372]
[1744518209476,3.0,1617.1,1616.8,6.18489]
[1744518209676,3.17298316,1617.1,1616.8,8.122751]
[1744518210170,3.17298316,1617.1,1616.8,14.307641]
[1744518211414,3.17298316,1617.1,1616.9,6.18467]
[1744518212309,0.17298316,1617.1,1616.9,12.36914]
[1744518212672,3.7608,1617.2,1617.0,6.18429]
[1744518212868,0.17298316,1617.1,1617.0,6.18429]
[1744518213074,0.7608,1617.2,1617.0,1.236876]
[1744518213274,0.7608,1617.2,1616.8,8.122861]
[1744518213275,0.17298316,1617.1,1616.8,14.307761]
[1744518213491,6.94452,1617.2,1616.8,14.307761]
[1744518213707,0.17298316,1617.1,1616.8,14.307761]
[1744518214529,6.94452,1617.2,1616.9,6.18465]
[1744518214703,0.17298316,1617.1,1616.9,6.18465]
[1744518214902,6.94452,1617.2,1616.9,6.18465]
[1744518215131,0.17298316,1617.1,1616.9,6.18465]
[1744518215425,0.17298316,1617.1,1616.9,13.7998711]
[1744518215902,0.7608,1617.2,1616.9,13.7998711]
[1744518216233,6.18321,1617.3,1617.0,6.18429]
[1744518216234,0.17298316,1617.1,1617.0,6.18429]
[1744518216393,0.17298316,1617.1,1617.0,6.99919]
[1744518216717,0.02,1617.4,1617.2,6.18326]
[1744518218217,0.02,1617.4,1617.2,8.039973]
[1744518218622,0.02,1617.4,1617.3,6.18314]
[1744518219845,0.02,1617.4,1617.2,8.039973]
[1744518220020,0.02,1617.4,1617.2,6.18326]
[1744518220350,6.20295,1617.4,1617.1,6.2]
[1744518220547,6.98505,1617.4,1617.1,6.2]
[1744518221420,6.98505,1617.4,1617.1,6.199]
[1744518221651,6.98505,1617.4,1617.1,12.38289]
[1744518223274,0.8021,1617.4,1617.1,20.504819]
[1744518224863,6.98489,1617.4,1617.1,14.320929]
[1744518225016,6.98489,1617.4,1617.1,12.38274]
[1744518227255,0.7821,1617.1,1616.8,8.122851]
[1744518227414,6.96615,1617.1,1616.8,6.18499]
[1744518228038,0.7821,1617.1,1616.8,12.36988]
[1744518228755,0.7821,1617.1,1616.9,6.18466]
[1744518229976,0.1442637,1617.0,1616.9,6.18466]
[1744518230747,0.1442637,1617.0,1616.8,6.18489]
[1744518230949,0.1442637,1617.0,1616.8,8.041818]
[1744518231779,0.1442637,1617.0,1616.8,14.226668]
[1744518232682,0.1442637,1617.0,1616.8,8.041778]
[1744518235067,3.7886,1617.2,1616.9,13.13754]
[1744518235277,0.1442468,1617.1,1616.9,13.13754]
[1744518235437,3.0,1617.2,1616.9,14.6369868]
[1744518235639,0.1442468,1617.1,1616.9,14.6369868]
[1744518235839,3.0,1617.2,1616.9,14.6369868]
[1744518236069,0.1442468,1617.1,1616.9,14.6369868]
[1744518236269,3.0,1617.2,1616.9,14.6369868]
[1744518236470,0.1442468,1617.1,1616.9,14.6369868]
[1744518236644,3.0,1617.2,1617.0,0.94716097]
[1744518236966,0.1442468,1617.1,1617.0,7.13139097]
[1744518237359,7.01363,1617.4,1617.0,7.13126097]
[1744518237681,7.01363,1617.4,1617.1,12.38278]
[1744518238045,0.02,1617.4,1617.1,12.3827]
[1744518238246,0.02,1617.4,1617.2,2.06957]
[1744518238771,0.02,1617.4,1617.2,8.25294]
[1744518241084,0.02,1617.4,1617.2,8.25293]
[1744518241381,0.02,1617.4,1617.3,6.18314]
[1744518241564,0.02,1617.4,1617.3,7.626747]
[1744518242063,0.02,1617.4,1617.3,1.443607]
[1744518242581,0.02,1617.4,1617.3,7.626747]
[1744518246585,0.02,1617.4,1617.3,8.427147]
[1744518248295,0.02,1617.4,1617.3,8.977147]
[1744518249708,0.02,1617.4,1617.3,8.427147]
[1744518250370,0.02,1617.4,1617.3,8.977147]
[1744518252695,0.02,1617.4,1617.3,8.427147]
[1744518253202,0.02,1617.4,1617.2,7.42163]
[1744518253500,0.02,1617.4,1617.2,13.60495]
[1744518254054,0.02,1617.4,1617.2,7.42159]
[1744518254489,0.02,1617.4,1617.3,6.18314]
[1744518256398,0.02,1617.4,1617.2,7.42159]
[1744518256605,0.8283,1617.3,1616.9,6.18465]
[1744518256776,0.8283,1617.1,1616.9,6.18467]
[1744518256973,0.8283,1617.1,1616.9,12.3294696]
[1744518257174,3.8283,1617.3,1617.0,6.18429]
[1744518257889,3.8283,1617.3,1617.0,12.36843]
[1744518258506,3.8283,1617.3,1617.0,6.18414]
[1744518259500,7.012,1617.2,1616.8,65.401]
[1744518259661,13.19578,1617.2,1616.8,67.49244433]
[1744518260400,7.012,1617.2,1616.8,73.67730433]
[1744518260966,7.012,1617.2,1616.8,67.49230433]
[1744518261166,7.012,1617.2,1616.8,73.67715433]
[1744518261590,7.012,1617.2,1617.0,6.18412]
[1744518261591,0.8283,1617.2,1617.0,6.18412]
[1744518261790,0.8283,1617.2,1617.1,0.618412]
[1744518261968,0.8283,1617.2,1617.0,6.18412]
[1744518262404,0.8283,1617.2,1617.0,12.36826]
[1744518262778,6.98267,1617.4,1617.0,13.15666]
[1744518262979,6.98267,1617.4,1617.1,6.18389]
[1744518266009,13.16564,1617.4,1617.0,6.18412]
[1744518266202,6.98267,1617.4,1617.0,7.496663]
[1744518266407,6.98267,1617.4,1617.0,13.680763]
[1744518267014,6.98267,1617.4,1617.0,13.680743]
[1744518267397,0.7999,1617.4,1617.1,12.36744]
[1744518268209,0.7999,1617.4,1617.1,6.18371]
[1744518268375,6.98281,1617.4,1617.1,6.18371]
[1744518268575,13.16588,1617.4,1617.0,7.496823]
[1744518269206,6.98281,1617.4,1617.1,0.7496823]
[1744518269508,0.7999,1617.4,1617.1,6.9335523]
[1744518269905,0.7999,1617.4,1617.1,0.7496823]
[1744518270099,0.02,1617.4,1617.2,6.18346]
[1744518270912,0.7553,1617.3,1617.1,6.18384]
[1744518271722,6.18371,1617.2,1616.8,67.48118433]
[1744518273018,9.93848,1617.3,1617.0,6.18407]
[1744518273019,3.7553,1617.3,1617.0,6.18407]
[1744518273196,3.7553,1617.3,1617.1,0.618407]
[1744518273398,0.02,1617.4,1617.2,6.18352]
[1744518273611,0.02,1617.4,1617.2,6.97952]
[1744518273788,0.02,1617.4,1617.3,6.18314]
[1744518276791,0.02,1617.4,1617.3,6.95404]
[1744518276993,0.02,1617.4,1617.3,9.10605674]
[1744518278391,0.02,1617.4,1617.3,9.65605674]
[1744518279228,0.02,1617.4,1617.3,8.33515674]
[1744518281227,0.3936603,1617.7,1617.3,17.30515674]
[1744518281430,4.8286554,1618.3,1617.8,0.55]
[1744518281600,4.8286554,1618.3,1618.0,6.18019]
[1744518281925,0.17597685,1618.2,1618.1,6.18005]
[1744518283533,0.12170291,1618.2,1618.1,6.18005]
[1744518283841,0.12170291,1618.2,1618.1,7.496684]
[1744518285810,0.02,1618.4,1618.2,6.17969]
[1744518287348,0.02,1618.4,1618.1,7.496684]
[1744518288362,0.7981,1618.3,1618.0,6.18046]
[1744518289228,0.7981,1618.3,1618.0,12.36076]
[1744518289738,0.7981,1618.3,1618.0,6.1803]
[1744518289915,12.37816,1618.4,1617.7,65.38404]
[1744518289916,0.7981,1618.0,1617.7,65.38404]
[1744518290116,0.7981,1618.0,1617.8,6.18108]
[1744518290414,0.1434428,1617.9,1617.8,6.18108]
[1744518293014,0.777,1618.1,1617.9,6.1806]
[1744518296843,0.7801,1618.3,1618.0,6.18018]
[1744518297016,0.7801,1618.3,1618.0,12.36036]
[1744518297217,0.7801,1618.3,1618.2,6.1797]
[1744518297416,0.8001,1618.4,1618.0,13.685696]
[1744518297619,6.97929,1618.4,1618.0,12.37131]
[1744518297829,6.17932,1618.3,1618.0,12.37131]
[1744518298120,6.17932,1618.3,1618.0,6.191]
[1744518298320,0.7801,1618.2,1618.0,6.191]
[1744518298539,6.95997,1618.2,1618.0,6.191]
[1744518301249,0.7801,1618.2,1618.0,12.37128]
[1744518301429,0.8001,1618.4,1618.1,6.18008]
[1744518301633,0.8001,1618.4,1618.0,13.608464]
[1744518301634,6.97923,1618.4,1618.0,13.608464]
[1744518301854,6.32742013,1618.3,1618.0,13.608464]
[1744518304464,12.50698013,1618.3,1618.0,7.428184]
[1744518304770,0.7801,1618.2,1618.0,6.191]
[1744518304970,0.12226156,1618.1,1618.0,6.191]
[1744518305139,0.7801,1618.3,1618.0,18.55174]
[1744518305339,0.12341534,1618.2,1618.0,12.37137]
[1744518305525,0.12341534,1618.2,1618.0,14.304795]
[1744518306029,0.12341534,1618.2,1618.0,14.304745]
[1744518306361,0.7801,1618.3,1618.0,14.304745]
[1744518307032,0.12341534,1618.2,1618.0,20.485085]
[1744518307443,0.7801,1618.3,1618.0,20.485085]
[1744518307781,0.12341534,1618.2,1618.0,20.485085]
[1744518308081,0.12341534,1618.2,1618.1,2.0485085]
[1744518308278,0.7801,1618.3,1618.1,2.0485085]
[1744518308641,0.12341534,1618.2,1618.1,2.0485085]
[1744518309287,0.12341534,1618.2,1618.0,12.37132]
[1744518309488,6.30335534,1618.2,1618.0,6.191]
[1744518309793,6.17994,1618.2,1618.0,6.191]
[1744518309945,0.12292952,1618.1,1618.0,6.191]
[1744518310146,6.17994,1618.2,1618.0,6.191]
[1744518310472,0.12292952,1618.1,1618.0,6.191]
[1744518311063,0.7801,1618.3,1618.0,12.37125]
[1744518311380,0.7801,1618.3,1618.0,18.55156]
[1744518311565,0.12349883,1618.2,1618.0,20.406716]
[1744518312779,0.12349883,1618.2,1618.1,6.18008]
[1744518312986,6.94957,1618.4,1618.1,6.18008]
[1744518313183,0.12394283,1618.3,1618.1,6.18008]
[1744518313427,6.94957,1618.4,1618.1,6.18008]
[1744518313594,0.1233736,1618.2,1618.1,6.18008]
[1744518313897,6.94957,1618.4,1618.1,8.2207286]
[1744518314047,0.1233736,1618.2,1618.1,8.2207286]
[1744518314248,6.94957,1618.4,1618.1,8.2207286]
[1744518314584,6.94957,1618.4,1618.1,6.18008]
[1744518314791,0.12394283,1618.3,1618.0,12.37125]
[1744518314961,13.12873,1618.4,1618.0,12.37125]
[1744518315145,6.30347283,1618.3,1618.0,6.191]
[1744518315484,0.7829,1618.2,1618.0,6.191]
[1744518315849,0.12301302,1618.1,1618.0,6.191]
[1744518316052,0.12301302,1618.1,1618.0,8.046244]
[1744518316253,0.7829,1618.2,1618.0,14.226684]
[1744518316494,0.12301302,1618.1,1618.0,8.035684]
[1744518316784,6.98189,1618.4,1618.0,14.216024]
[1744518316951,0.12394284,1618.3,1618.0,14.216024]
[1744518317152,6.98189,1618.4,1618.0,14.216024]
[1744518317487,6.98189,1618.4,1618.0,8.035584]
[1744518317488,6.30339284,1618.3,1618.0,8.035584]
[1744518317785,0.7829,1618.2,1617.9,12.36978]
[1744518317994,0.12292954,1618.1,1617.9,12.36978]
[1744518318176,0.7829,1618.2,1617.9,12.36978]
[1744518318376,0.12292954,1618.1,1617.9,12.36978]
[1744518318672,0.7829,1618.2,1617.9,12.36978]
[1744518318870,0.12236016,1618.0,1617.9,12.36978]
[1744518319173,0.7829,1618.2,1617.9,18.55045]
[1744518319370,0.12292954,1618.1,1617.9,18.55045]
[1744518319579,0.7829,1618.2,1617.9,18.55045]
[1744518319810,0.7829,1618.2,1617.9,12.36967]
[1744518319811,0.12292954,1618.1,1617.9,12.36967]
[1744518320174,6.96266,1618.2,1617.9,14.224754]
[1744518320421,0.12292954,1618.1,1617.9,14.224754]
[1744518320721,6.96266,1618.2,1617.9,14.224754]
[1744518320900,0.12292954,1618.1,1617.9,14.224754]
[1744518321220,6.96266,1618.2,1617.9,14.224754]
[1744518321517,6.96266,1618.2,1617.9,6.189]
[1744518321684,6.18046,1618.0,1617.9,6.189]
[1744518321885,6.30282016,1618.0,1617.9,6.189]
[1744518322923,6.98729,1617.9,1617.6,12.3708]
[1744518323084,0.14501458,1617.8,1617.6,12.3708]
[1744518323282,0.14501458,1617.8,1617.7,1.23708]
[1744518324624,0.14501458,1617.8,1617.6,6.189]
[1744518325028,6.32624458,1617.8,1617.6,6.189]
[1744518325187,0.7734,1617.7,1617.3,59.18309]
[1744518325387,0.14364748,1617.6,1617.3,59.18309]
[1744518325592,6.95515,1617.7,1617.4,5.918309]
[1744518325818,0.1402904,1617.6,1617.4,5.918309]
[1744518326124,0.17450841,1617.5,1617.4,5.918309]
[1744518328531,1.00780841,1617.5,1617.4,5.918309]
[1744518328736,1.00780841,1617.5,1617.3,53.0]
[1744518329737,1.00780841,1617.5,1617.2,12.37338]
[1744518330602,1.00780841,1617.5,1617.2,6.19]
[1744518330800,1.00780841,1617.5,1617.3,6.18284]
[1744518332854,1.00780841,1617.5,1617.2,18.55692]
[1744518333144,1.00780841,1617.5,1617.3,1.855692]
[1744518335362,0.17450841,1617.5,1617.4,6.97176]
[1744518335652,0.8333,1618.0,1617.8,6.18107]
[1744518335830,4.8709554,1618.2,1617.9,6.18085]
[1744518336169,3.0,1618.1,1617.9,6.18085]
[1744518336949,4.8709554,1618.2,1617.9,6.18085]
[1744518337961,4.8709554,1618.2,1617.9,13.676652]
[1744518338731,4.8709554,1618.2,1617.9,7.495802]
[1744518341056,3.8333,1618.2,1617.9,7.495802]
[1744518341260,10.01312,1618.2,1617.9,1.315092]
[1744518342056,3.8333,1618.2,1617.9,7.495632]
[1744518342261,3.8333,1618.2,1618.0,0.7495632]
[1744518342463,3.8333,1618.2,1618.0,6.9300032]
[1744518343477,0.8333,1618.2,1618.0,6.9300032]
[1744518346770,6.94374,1618.3,1618.0,6.9300032]
[1744518346940,3.7644,1618.3,1618.0,13.1103432]
[1744518347149,3.7644,1618.3,1618.1,1.31103432]
[1744518347679,3.7644,1618.3,1618.0,13.1103432]
[1744518347835,3.7644,1618.3,1618.0,6.9299032]
[1744518348034,3.7644,1618.3,1618.0,13.1101632]
[1744518348275,3.0,1618.3,1618.1,6.18006]
[1744518348568,7.00849,1618.4,1618.1,6.18006]
[1744518348769,7.00849,1618.4,1618.1,7.49104832]
[1744518349180,0.8295,1618.4,1618.1,7.49094832]
[1744518349346,0.02,1618.4,1618.2,6.17948]
[1744518350033,0.14697794,1618.3,1618.2,6.17948]
[1744518350242,0.02,1618.4,1618.2,6.17948]
[1744518350436,0.02,1618.4,1618.3,0.617948]
[1744518350638,0.02,1618.4,1618.1,8.25390832]
[1744518351379,0.02,1618.4,1618.1,8.25380832]
[1744518351582,0.02,1618.4,1618.2,6.17952]
[1744518351870,0.02,1618.4,1618.3,6.17932]
[1744518352439,0.02,1618.4,1618.3,6.96172]
[1744518352640,0.02,1618.4,1618.3,8.275844]
[1744518361157,0.02,1618.4,1618.3,11.02529141]
[1744518361362,1e-05,1618.4,1618.3,11.02529141]
[1744518361559,1e-05,1618.4,1618.3,14.02529141]
[1744518362892,1e-05,1618.4,1618.3,19.99529141]
[1744518364090,1e-05,1618.4,1618.3,23.99529141]
[1744518364292,0.3936603,1619.3,1619.2,6.17588]
[1744518364492,0.3936603,1619.3,1619.2,7.411082]
[1744518364814,1.31739403,1619.3,1619.1,6.186]
[1744518365307,1.31739403,1619.3,1619.1,12.36222]
[1744518365615,1.31739403,1619.3,1619.1,18.53832]
[1744518365905,1.31739403,1619.3,1619.1,6.186]
[1744518368811,1.31739403,1619.3,1619.1,12.3621]
[1744518369497,1.31739403,1619.3,1619.1,18.53818]
[1744518369710,0.52479403,1619.3,1619.1,18.53818]
[1744518369911,0.52479403,1619.3,1619.2,6.99198]
[1744518370283,0.52479403,1619.3,1619.1,12.36208]
[1744518370488,0.52479403,1619.3,1619.1,18.53815]
[1744518370796,0.52479403,1619.3,1619.2,6.17588]
[1744518371106,0.52479403,1619.3,1619.1,12.36207]
[1744518371677,0.52479403,1619.3,1619.1,12.36204]
[1744518372005,0.52479403,1619.3,1619.2,6.17588]
[1744518372616,0.52479403,1619.3,1619.1,13.679354]
[1744518373213,0.52479403,1619.3,1619.2,6.17588]
[1744518373415,0.52479403,1619.3,1619.1,13.679354]
[1744518373620,0.52479403,1619.3,1619.0,6.181]
[1744518373794,13.15127,1619.2,1618.8,6.1774]
[1744518373996,6.3130778,1619.1,1618.7,12.35877]
[1744518374179,0.7991,1619.0,1618.7,12.35877]
[1744518374508,0.13597896,1618.9,1618.7,6.181]
[1744518374914,6.97685,1618.8,1618.4,6.181]
[1744518375221,6.31178214,1618.7,1618.4,6.181]
[1744518376119,0.13363214,1618.7,1618.4,12.35985]
[1744518378323,0.13363214,1618.7,1618.4,18.53857]
[1744518378526,0.13363214,1618.7,1618.5,1.853857]
[1744518379117,0.13363214,1618.7,1618.4,6.181]
[1744518379313,6.31156214,1618.7,1618.4,6.181]
[1744518380428,6.9881,1618.6,1618.4,6.181]
[1744518380637,6.17856,1618.5,1618.4,6.181]
[1744518380809,6.30750896,1618.5,1618.4,6.181]
[1744518381635,0.12894896,1618.5,1618.4,6.181]
[1744518381931,0.8099,1618.6,1618.4,6.181]
[1744518382302,0.12894896,1618.5,1618.4,7.417028]
[1744518382735,0.8099,1618.6,1618.4,7.417028]
[1744518383035,0.12894896,1618.5,1618.4,7.417028]
[1744518383202,0.8099,1618.6,1618.4,7.417028]
[1744518383404,0.12894896,1618.5,1618.4,7.417028]
[1744518383735,6.98769,1618.7,1618.4,7.417028]
[1744518383936,6.98769,1618.7,1618.4,6.181]
[1744518384114,0.12951799,1618.6,1618.4,6.181]
[1744518384640,0.12894896,1618.5,1618.4,6.181]
[1744518384939,6.98769,1618.7,1618.4,12.35987]
[1744518385238,0.12951799,1618.6,1618.4,6.181]
[1744518385440,13.16572,1618.7,1618.4,6.181]
[1744518385633,0.12951799,1618.6,1618.4,6.181]
[1744518385935,12.3567,1618.6,1618.4,6.181]
[1744518386138,0.12894896,1618.5,1618.2,6.17951]
[1744518386511,0.7728,1618.4,1618.2,6.17951]
[1744518387046,0.12735176,1618.3,1618.2,6.17951]
[1744518387244,6.95205,1618.4,1618.1,8.32608832]
[1744518387410,6.30685176,1618.3,1618.1,6.182]
[1744518388304,12.48641176,1618.3,1618.1,6.182]
[1744518388736,6.30685176,1618.3,1618.1,6.182]
[1744518389140,12.48648176,1618.3,1618.1,6.182]
[1744518389337,6.1797,1618.2,1618.1,6.182]
[1744518389727,6.30648252,1618.2,1618.1,6.182]
[1744518390431,0.8038,1618.1,1617.8,65.34505]
[1744518390745,0.14796842,1618.0,1617.8,59.164]
[1744518391062,0.14796842,1618.0,1617.8,52.981]
[1744518391250,6.32852842,1618.0,1617.7,12.36448]
[1744518391541,6.32852842,1618.0,1617.7,14.301225]
[1744518392411,6.32852842,1618.0,1617.7,14.301145]
[1744518392412,0.14796842,1618.0,1617.7,14.301145]
[1744518392916,0.14796842,1618.0,1617.7,20.482555]
[1744518396082,0.14796842,1618.0,1617.7,14.301145]
[1744518398044,0.14796842,1618.0,1617.7,6.183]
[1744518398250,6.97188,1617.9,1617.7,6.183]
[1744518398561,0.14625106,1617.8,1617.7,6.183]
[1744518402847,6.32748106,1617.8,1617.7,6.183]
[1744518404489,0.14625106,1617.8,1617.7,6.183]
[1744518406575,0.14625106,1617.8,1617.6,6.18199]
[1744518408363,0.14625106,1617.8,1617.6,7.76021699]
[1744518408688,6.97185,1617.9,1617.6,7.76021699]
[1744518409087,0.17836777,1617.8,1617.6,7.76021699]
[1744518409254,6.97185,1617.9,1617.6,7.76021699]
[1744518409450,0.17836777,1617.8,1617.6,7.76021699]
[1744518409667,6.97185,1617.9,1617.6,7.76021699]
[1744518409856,0.17836777,1617.8,1617.6,7.76021699]
[1744518410079,13.153,1617.9,1617.6,1.57822699]
[1744518410274,6.35972777,1617.8,1617.5,6.183]
[1744518410466,6.18136,1617.8,1617.5,12.36537]
[1744518410652,0.17751339,1617.7,1617.5,12.36537]
[1744518411647,0.17751339,1617.7,1617.5,6.183]
[1744518412074,6.35918339,1617.7,1617.5,6.183]
[1744518412690,12.54102339,1617.7,1617.5,6.183]
[1744518412844,6.18202,1617.6,1617.3,6.184]
[1744518413053,6.32314345,1617.5,1617.3,6.184]
[1744518413253,6.18276,1617.4,1617.0,12.36827]
[1744518413461,6.18322,1617.3,1617.0,12.36827]
[1744518413700,6.18322,1617.3,1617.0,6.184]
[1744518413859,6.94641,1617.2,1617.0,6.184]
[1744518414566,0.7627,1617.2,1617.0,6.184]
[1744518415691,0.7627,1617.2,1617.0,12.36828]
[1744518416392,0.8039,1617.3,1617.0,18.55244]
[1744518416595,0.8039,1617.3,1617.0,12.36816]
[1744518418797,6.98715,1617.3,1616.9,59.96653]
[1744518418980,0.8039,1617.3,1616.9,66.15137]
[1744518419496,0.8039,1617.3,1617.0,6.18415]
[1744518419698,6.98723,1617.3,1616.9,66.15137]
[1744518419995,7.685953,1617.3,1616.9,65.37847]
[1744518420192,0.7923,1617.1,1616.9,59.194]
[1744518420416,6.97657,1617.1,1616.9,6.185]
[1744518420764,0.7923,1617.1,1616.9,6.185]
[1744518421895,3.0,1617.3,1617.0,6.98989]
[1744518422295,9.18315,1617.3,1617.0,6.98989]
[1744518423285,6.18315,1617.3,1617.0,6.98989]
[1744518423490,6.18315,1617.3,1617.0,0.8058]
[1744518423997,7.49898,1617.3,1616.9,12.36963]
[1744518424202,6.97596,1617.2,1616.9,6.185]
[1744518425017,13.15974,1617.2,1616.9,6.185]
[1744518427203,6.18403,1617.1,1616.9,6.185]
[1744518427808,12.36818,1617.1,1616.9,6.185]
[1744518428181,6.18403,1617.1,1616.9,6.185]
[1744518428812,6.97589,1617.2,1616.9,6.185]
[1744518429586,7.79107476,1617.2,1616.9,6.185]
[1744518430083,6.18409,1617.1,1616.9,6.185]
[1744518432537,6.18429,1617.0,1616.9,6.185]
[1744518433454,7.00999,1617.0,1616.8,7.04545455]
[1744518433646,0.8257,1617.0,1616.8,7.04545455]
[1744518433942,6.18409,1617.1,1616.8,13.23050455]
[1744518434243,7.00979,1617.1,1616.8,13.23050455]
[1744518434452,0.8257,1617.1,1616.8,15.171913]
[1744518434605,6.1829,1617.4,1617.0,6.18415]
[1744518434805,6.1829,1617.4,1617.0,12.3683]
[1744518435707,12.36588,1617.4,1617.0,6.18415]
[1744518437321,6.18323,1617.3,1616.9,13.16821]
[1744518437507,13.19322,1617.2,1616.9,6.184]
[1744518437946,7.00944,1617.2,1616.9,6.184]
[1744518438153,6.18319,1617.3,1616.9,12.36843]
[1744518438444,6.18319,1617.3,1617.0,6.18427]
[1744518438832,7.0085,1617.4,1617.0,12.36839]
[1744518439021,6.1828,1617.4,1617.1,0.7996]
[1744518439223,6.1828,1617.4,1617.1,6.98347]
[1744518440952,6.18328,1617.3,1617.0,1.855239]
[1744518441127,12.36665,1617.3,1616.9,13.13103]
[1744518441720,13.12655,1617.3,1616.9,13.13103]
[1744518442353,6.94318,1617.3,1616.9,13.13089]
[1744518442653,13.12556,1617.4,1617.0,6.1841]
[1744518442861,6.18321,1617.3,1617.0,6.1841]
[1744518443264,6.18277,1617.4,1617.1,0.7624]
[1744518444462,6.18319,1617.3,1617.0,6.94648]
[1744518445125,6.18277,1617.4,1617.0,6.94648]
[1744518445324,6.18277,1617.4,1617.0,13.13058]
[1744518447571,3.7599,1617.5,1617.0,0.7624]
[1744518447775,6.18126,1617.8,1617.5,0.7736]
[1744518447975,0.695686,1617.8,1617.5,13.13812]
[1744518448180,6.1812,1617.9,1617.5,13.13812]
[1744518448634,6.35428105,1617.9,1617.5,13.13812]
[1744518450082,6.35428105,1617.9,1617.5,6.95577]
[1744518451376,0.17308105,1617.9,1617.6,6.18193]
[1744518451876,6.35399105,1617.9,1617.6,6.18193]
[1744518452078,0.17308105,1617.9,1617.6,6.18193]
[1744518452680,0.17308105,1617.9,1617.7,0.7889]
[1744518454777,6.18123,1617.8,1617.5,6.97125]